bitfinex/quotes_SOLUSD_20250718
["timestamp","ask_amount","ask_price","bid_price","bid_amount"]
[1752854937099,56.16,176.99,176.98,1e-08]
[1752854937293,95.15650705,176.99,176.98,1e-08]
[1752854938279,94.47650705,176.99,176.98,1e-08]
[1752854938501,83.44620211,176.99,176.98,1e-08]
[1752854938798,95.15650705,176.99,176.98,1e-08]
[1752854939010,95.15509425,176.99,176.98,1e-08]
[1752854939503,95.15323652,176.99,176.98,1e-08]
[1752854939878,106.86354146,176.99,176.98,1e-08]
[1752854940080,95.15323652,176.99,176.98,1e-08]
[1752854940713,106.86354146,176.99,176.98,1e-08]
[1752854940906,54.49498891,176.96,176.95,1e-08]
[1752854941092,88.8231998,176.96,176.95,1e-08]
[1752854941297,88.8231998,176.96,176.9,6.5202]
[1752854941298,142.4016808,176.96,176.9,6.5202]
[1752854941488,142.4016808,176.96,176.81,1.6649]
[1752854941489,26.0,176.84,176.81,1.6649]
[1752854941687,33.8,176.91,176.82,0.65]
[1752854941887,37.71030494,176.88,176.83,11.71030494]
[1752854942096,20.458481,176.96,176.87,11.71030494]
[1752854942395,17.36099539,176.97,176.92,11.71030494]
[1752854942609,30.16,176.96,176.94,6.5226]
[1752854942924,30.16,176.95,176.94,18.23290494]
[1752854943118,30.16,176.95,176.94,7.1726]
[1752854943488,30.16,176.95,176.94,6.5226]
[1752854943825,73.52161887,176.95,176.94,6.5226]
[1752854944111,26.0,176.92,176.89,8.0895]
[1752854944322,11.71030494,176.9,176.89,8.0895]
[1752854944521,11.71030494,176.9,176.89,6.5306]
[1752854944522,28.49498891,176.9,176.89,6.5306]
[1752854944722,42.78468397,176.89,176.85,1.51]
[1752854944931,30.24,176.88,176.85,1.51]
[1752854945306,42.78468397,176.89,176.85,1.51]
[1752854945307,30.24,176.87,176.86,0.65]
[1752854945502,30.24,176.87,176.86,11.71030494]
[1752854945724,28.49498891,176.94,176.86,11.71030494]
[1752854945920,26.0,176.9,176.87,0.65]
[1752854946102,30.24,176.89,176.87,12.36030494]
[1752854946431,30.24,176.89,176.87,0.65]
[1752854946816,30.24,176.89,176.87,12.36030494]
[1752854947009,30.24,176.89,176.87,0.65]
[1752854947210,95.35355042,176.88,176.85,1.51]
[1752854947407,131.65030494,176.87,176.85,1.51]
[1752854947727,119.94,176.87,176.85,1.51]
[1752854948316,119.94,176.87,176.85,2.16]
[1752854948710,119.94,176.87,176.85,1.51]
[1752854949327,5.65418975,176.86,176.85,1.51]
[1752854949835,17.36449469,176.86,176.84,6.1252]
[1752854950141,119.9,176.85,176.84,6.1252]
[1752854951147,119.9,176.85,176.84,18.48550494]
[1752854951504,119.9,176.85,176.84,6.7752]
[1752854951805,125.55450947,176.85,176.84,6.1252]
[1752854952021,119.9,176.85,176.84,6.1252]
[1752854952416,119.9,176.85,176.84,6.7752]
[1752854952818,125.55450947,176.85,176.84,6.1252]
[1752854953030,137.26481441,176.85,176.84,6.1252]
[1752854953420,125.55450947,176.85,176.84,6.1252]
[1752854953924,89.7,176.85,176.84,6.7752]
[1752854954226,124.03244528,176.85,176.84,6.7752]
[1752854954535,124.03244528,176.85,176.84,6.1252]
[1752854954720,124.03244528,176.85,176.84,6.7752]
[1752854955325,4.15244528,176.85,176.84,18.48550494]
[1752854955661,147.9,176.9,176.85,1.5881]
[1752854955836,89.7,176.92,176.89,11.71030494]
[1752854956138,89.7,176.92,176.87,0.7]
[1752854956315,30.22,176.91,176.9,11.71030494]
[1752854956511,30.22,176.91,176.85,1.5881]
[1752854956711,89.7,176.9,176.88,11.71030494]
[1752854957026,30.24,176.89,176.88,11.71030494]
[1752854957423,30.24,176.89,176.87,11.71030494]
[1752854957820,30.24,176.89,176.85,2.2881]
[1752854958024,30.24,176.89,176.87,11.71030494]
[1752854958416,30.24,176.89,176.88,11.71030494]
[1752854958734,30.24,176.89,176.85,1.6181]
[1752854958735,89.7,176.88,176.85,1.6181]
[1752854958909,30.2,176.87,176.85,1.6181]
[1752854959514,11.71030494,176.86,176.85,0.03]
[1752854959716,18.08449469,176.86,176.85,0.03]
[1752854959932,5.65418975,176.86,176.85,0.03]
[1752854960546,35.85391565,176.87,176.85,0.03]
[1752854961523,26.0,176.88,176.85,11.74030494]
[1752854961836,30.24,176.89,176.88,6.3216]
[1752854962046,30.24,176.89,176.88,18.03190494]
[1752854962247,30.24,176.89,176.88,6.3216]
[1752854962621,30.24,176.89,176.88,18.03190494]
[1752854962816,178.12,176.9,176.88,20.32300494]
[1752854963047,147.9,176.9,176.89,11.71030494]
[1752854963219,30.22,176.91,176.89,12.41030494]
[1752854963547,0.06,176.99,176.9,12.41030494]
[1752854963736,0.06,176.99,176.98,11.71030494]
[1752854964442,0.06,176.99,176.98,12.41030494]
[1752854965037,0.06,176.99,176.98,17.34531876]
[1752854965224,0.06,176.99,176.98,0.7]
[1752854965544,0.06,176.99,176.98,17.34531876]
[1752854965852,0.06,177.03,176.99,16.78468397]
[1752854966056,0.06,177.03,177.02,16.64531876]
[1752854966551,0.06,177.03,177.02,17.34531876]
[1752854967320,0.06,177.03,177.02,34.13000273]
[1752854967527,89.7,177.06,177.03,23.11658397]
[1752854967748,89.7,177.08,177.06,5.647803]
[1752854967949,89.7,177.08,177.06,23.92252176]
[1752854968246,89.7,177.08,177.06,24.62252176]
[1752854969460,89.7,177.08,177.06,1.6294]
[1752854969625,89.7,177.08,177.06,18.27471876]
[1752854969827,89.7,177.08,177.06,1.6294]
[1752854970020,89.7,177.08,177.06,18.27471876]
[1752854970221,89.7,177.08,177.06,5.77471876]
[1752854970835,89.7,177.08,177.06,11.42252176]
[1752854971052,89.7,177.08,177.06,12.12252176]
[1752854971775,89.7,177.08,177.06,6.47471876]
[1752854971922,89.7,177.08,177.03,23.11658397]
[1752854971923,89.7,177.08,177.03,6.3319]
[1752854972250,89.7,177.08,177.06,16.64531876]
[1752854972833,30.26,177.07,177.06,16.64531876]
[1752854973158,47.62531876,177.07,177.03,6.3319]
[1752854973451,0.72,177.06,177.0,16.64531876]
[1752854973634,46.84531876,177.05,177.0,16.64531876]
[1752854973841,36.56820506,177.05,177.01,16.64531876]
[1752854974452,30.2,177.05,177.03,16.64531876]
[1752854975353,30.2,177.05,177.04,16.64531876]
[1752854975933,35.84814979,177.05,177.02,0.03]
[1752854976131,35.84814979,177.05,177.02,16.67531876]
[1752854976327,36.56814979,177.05,177.02,16.67531876]
[1752854976757,30.2,177.05,177.03,16.64531876]
[1752854976956,30.2,177.05,177.02,0.03]
[1752854977266,30.2,177.05,177.04,16.64531876]
[1752854978042,30.2,177.05,177.03,16.64531876]
[1752854978364,30.2,177.05,177.02,0.03]
[1752854978365,35.84814361,177.05,177.02,0.03]
[1752854978740,90.42,177.04,177.02,0.03]
[1752854979091,89.7,177.03,177.02,0.03]
[1752854979235,120.62,177.03,177.02,0.03]
[1752854979948,126.26876009,177.03,177.02,0.03]
[1752854980685,89.7,177.03,177.02,16.67531876]
[1752854980962,119.88,177.03,177.02,16.67531876]
[1752854981145,119.88,177.03,177.02,0.03]
[1752854981560,89.7,177.03,177.02,0.03]
[1752854981761,119.88,177.03,177.02,0.03]
[1752854981978,125.52876009,177.03,177.02,0.03]
[1752854982381,142.89407885,177.03,177.02,0.03]
[1752854982677,142.89407885,177.03,176.95,6.5433]
[1752854982678,89.67,177.0,176.96,16.64531876]
[1752854982886,173.9,177.02,176.96,16.64531876]
[1752854982887,119.85,176.99,176.96,16.64531876]
[1752854983054,119.85,176.99,176.92,0.7]
[1752854983055,120.57,176.98,176.94,16.64531876]
[1752854983259,89.67,176.97,176.94,16.64531876]
[1752854983470,89.67,176.96,176.94,0.7]
[1752854983784,89.67,176.96,176.95,16.64531876]
[1752854983954,89.67,176.96,176.95,22.99663269]
[1752854984958,30.18,177.01,176.95,22.99663269]
[1752854985153,119.85,177.02,177.0,16.64531876]
[1752854985352,119.85,177.02,176.96,0.7]
[1752854985575,30.18,177.02,177.0,16.64531876]
[1752854986177,30.89,177.02,177.0,16.64531876]
[1752854986379,36.53908302,177.02,176.99,16.64531876]
[1752854986575,36.53908302,177.02,176.94,0.67]
[1752854986800,32.358129,177.05,176.95,16.78468397]
[1752854986967,56.16,177.04,177.02,11.79795514]
[1752854987804,56.16,177.04,176.98,5.65035597]
[1752854989773,30.16,177.04,176.98,5.65035597]
[1752854989963,30.16,177.04,177.03,11.79795514]
[1752854990165,30.16,177.05,177.03,11.79795514]
[1752854990387,30.87,177.05,177.03,11.79795514]
[1752854990895,30.16,177.05,177.04,11.79795514]
[1752854991059,30.87,177.05,177.04,11.79795514]
[1752854991385,30.87,177.05,177.02,11.79795514]
[1752854991592,0.71,177.04,177.02,11.79795514]
[1752854991796,30.16,177.03,177.02,11.79795514]
[1752854992684,30.16,177.05,177.02,11.79795514]
[1752854992896,30.16,177.05,176.99,18.36655514]
[1752854992897,30.16,177.05,177.04,11.79795514]
[1752854994597,30.16,177.05,177.01,5.64933985]
[1752854994778,30.16,177.05,177.04,11.79795514]
[1752854996876,32.41749434,177.07,177.04,11.79795514]
[1752854996877,0.06,177.07,177.04,17.44639617]
[1752854997109,30.22,177.07,177.06,11.79795514]
[1752854997267,0.06,177.07,177.06,11.79795514]
[1752854997986,0.06,177.07,177.04,0.67]
[1752854998197,0.06,177.07,177.06,11.79795514]
[1752854998586,0.77,177.07,177.05,11.79795514]
[1752854998786,30.93,177.07,177.05,11.79795514]
[1752854999312,30.22,177.07,177.05,11.79795514]
[1752854999480,30.22,177.07,177.06,11.79795514]
[1752854999875,30.22,177.07,176.99,7.2386]
[1752854999876,48.37555991,177.07,176.99,7.2386]
[1752855000097,0.71,177.06,177.02,11.79795514]
[1752855000304,30.87,177.05,176.99,6.5686]
[1752855000476,11.79795514,177.03,176.98,11.79795514]
[1752855000810,17.44735347,177.01,176.96,11.82795514]
[1752855000973,11.79795514,176.99,176.96,0.03]
[1752855001182,41.95795514,176.98,176.96,0.03]
[1752855001424,11.79795514,176.97,176.96,0.03]
[1752855001575,38.50795514,176.97,176.87,7.0436]
[1752855001777,11.79795514,176.94,176.89,11.79795514]
[1752855002000,30.87,176.93,176.9,11.79795514]
[1752855002225,26.71,176.97,176.92,11.79795514]
[1752855002376,30.16,176.96,176.95,11.79795514]
[1752855002575,30.16,176.98,176.96,5.65099457]
[1752855002879,30.16,177.0,176.97,11.79795514]
[1752855003206,0.71,176.99,176.96,11.79795514]
[1752855003373,30.16,176.98,176.96,11.79795514]
[1752855003578,30.16,176.98,176.97,11.79795514]
[1752855004102,31.64948596,177.01,176.97,11.79795514]
[1752855004280,30.16,177.0,176.99,11.79795514]
[1752855005422,26.0,177.01,176.99,11.79795514]
[1752855005594,26.71,177.01,177.0,11.79795514]
[1752855005798,56.87,177.01,177.0,11.79795514]
[1752855006412,62.51939833,177.01,177.0,11.79795514]
[1752855006921,62.51939833,177.01,176.99,11.79795514]
[1752855007424,26.0,176.97,176.91,11.99044317]
[1752855007633,30.16,176.96,176.94,11.79795514]
[1752855007797,30.16,176.96,176.95,11.79795514]
[1752855008320,16.78468397,177.03,176.95,11.79795514]
[1752855008321,26.71,177.04,176.95,18.11902099]
[1752855008624,30.16,177.03,177.01,11.79795514]
[1752855008820,0.71,177.02,177.0,11.79795514]
[1752855009002,30.16,177.01,177.0,11.79795514]
[1752855009602,56.16,177.01,177.0,11.79795514]
[1752855009818,30.16,177.03,177.0,11.79795514]
[1752855010001,30.16,177.03,177.02,11.79795514]
[1752855011420,36.51881254,177.03,176.95,6.32128589]
[1752855011723,11.79795514,177.01,176.96,11.79795514]
[1752855011903,30.87,177.0,176.97,11.79795514]
[1752855012217,0.71,176.99,176.92,2.2094]
[1752855012417,0.71,176.99,176.96,11.79795514]
[1752855012418,30.16,176.98,176.96,11.79795514]
[1752855012630,12.50795514,176.97,176.91,6.3379]
[1752855012824,30.16,176.96,176.92,11.79795514]
[1752855013124,30.16,176.96,176.94,11.79795514]
[1752855013423,30.16,176.96,176.91,12.66042034]
[1752855013599,26.0,177.01,176.95,11.79795514]
[1752855013799,34.3732018,177.0,176.98,11.79795514]
[1752855014019,0.71,176.99,176.95,11.79795514]
[1752855014227,30.87,176.98,176.94,11.79795514]
[1752855014424,0.71,176.97,176.94,11.79795514]
[1752855014722,0.71,177.03,176.96,11.79795514]
[1752855014911,56.16,177.02,176.99,11.79795514]
[1752855015096,1.6204,177.07,177.01,11.79795514]
[1752855015306,26.0,177.04,177.03,11.79795514]
[1752855016725,26.0,177.04,177.0,5.64965628]
[1752855016901,26.0,177.04,177.03,11.79795514]
[1752855017101,56.16,177.04,177.03,11.79795514]
[1752855017600,30.16,177.04,177.03,11.79795514]
[1752855018219,30.16,177.06,177.03,17.44671523]
[1752855018524,30.16,177.06,177.05,11.79795514]
[1752855018697,30.83,177.06,176.99,6.171]
[1752855018900,0.67,177.05,177.02,11.79795514]
[1752855019200,0.67,177.05,176.96,17.49468397]
[1752855019201,30.83,177.04,176.96,0.71]
[1752855019400,36.47864685,177.04,177.0,11.79795514]
[1752855019632,0.67,177.03,176.97,5.65067525]
[1752855019921,30.16,177.04,177.02,11.79795514]
[1752855020099,30.16,177.04,176.98,0.71]
[1752855020300,30.16,177.04,177.02,11.79795514]
[1752855020923,0.67,177.03,176.95,6.881]
[1752855021108,0.67,177.03,177.0,11.79795514]
[1752855021421,0.67,177.02,176.99,11.79795514]
[1752855021609,30.14,177.01,176.99,11.79795514]
[1752855022011,0.67,177.0,176.97,11.79795514]
[1752855022229,30.14,177.01,176.98,11.79795514]
[1752855022418,30.14,177.01,177.0,11.79795514]
[1752855022607,30.14,177.01,176.99,11.79795514]
[1752855023029,30.14,177.01,177.0,11.79795514]
[1752855023824,30.14,177.02,177.0,11.79795514]
[1752855024025,30.14,177.02,177.01,11.79795514]
[1752855024407,30.14,177.02,177.0,11.79795514]
[1752855024810,30.14,177.02,177.01,11.79795514]
[1752855025130,56.2,177.04,177.01,11.79795514]
[1752855025311,56.2,177.04,177.02,11.79795514]
[1752855025507,56.2,177.04,176.98,5.65010419]
[1752855025745,56.87,177.04,177.0,11.79795514]
[1752855026033,4.88792145,177.03,176.96,6.390926]
[1752855026213,30.14,177.02,177.0,11.79795514]
[1752855026416,30.81,177.02,177.0,11.79795514]
[1752855027033,26.06,177.04,177.0,11.79795514]
[1752855027242,31.70844203,177.04,177.02,11.79795514]
[1752855027537,26.73,177.04,177.02,11.79795514]
[1752855027710,26.06,177.04,177.03,11.79795514]
[1752855027914,0.06,177.04,177.03,11.79795514]
[1752855029044,0.06,177.04,176.99,6.35995362]
[1752855029243,0.67,177.03,176.96,0.74]
[1752855029421,0.67,177.03,177.0,11.79795514]
[1752855029734,0.67,177.03,177.01,11.79795514]
[1752855030114,6.31876878,177.03,176.97,5.65067525]
[1752855030314,6.31876878,177.03,177.01,11.79795514]
[1752855030516,0.67,177.03,177.01,11.79795514]
[1752855030736,0.06,177.04,177.02,11.79795514]
[1752855031046,0.06,177.04,177.03,11.79795514]
[1752855031429,0.06,177.04,177.03,12.50795514]
[1752855031758,0.06,177.04,177.03,18.51805514]
[1752855031918,0.06,177.04,177.03,6.7201]
[1752855032250,0.06,177.04,177.03,11.79795514]
[1752855032753,0.06,177.04,177.03,18.15671523]
[1752855034728,0.06,177.04,177.03,34.9413992]
[1752855036032,0.06,177.07,177.06,42.78468397]
[1752855036221,0.06,177.09,177.07,23.30708397]
[1752855036428,0.06,177.09,177.08,40.38059425]
[1752855036744,0.06,177.12,177.09,16.78468397]
[1752855037045,0.06,177.12,177.11,11.79795514]
[1752855037427,0.06,177.12,177.11,12.50795514]
[1752855037830,0.06,177.12,177.11,29.29263911]
[1752855038127,0.06,177.16,177.14,26.0]
[1752855038336,0.2,177.25,177.21,10.0]
[1752855038541,0.2,177.25,177.24,37.79795514]
[1752855038848,0.2,177.25,177.24,43.44002239]
[1752855039348,0.73,177.34,177.24,60.76470636]
[1752855039647,6.36888575,177.34,177.32,11.79795514]
[1752855039849,26.67,177.33,177.32,11.79795514]
[1752855040037,26.0,177.33,177.32,11.79795514]
[1752855040232,0.06,177.34,177.32,11.79795514]
[1752855040431,0.06,177.34,177.26,0.54]
[1752855040432,0.73,177.34,177.26,0.54]
[1752855040654,0.73,177.34,177.33,11.79795514]
[1752855041952,0.06,177.34,177.33,11.79795514]
[1752855042348,0.73,177.34,177.33,11.79795514]
[1752855043369,0.73,177.34,177.25,23.02028397]
[1752855043672,0.73,177.34,177.21,6.5173]
[1752855043673,0.06,177.29,177.21,6.5173]
[1752855043843,0.67,177.28,177.25,11.79795514]
[1752855044171,0.67,177.27,177.25,11.79795514]
[1752855044466,0.67,177.27,177.26,11.79795514]
[1752855044963,0.06,177.29,177.26,17.43937781]
[1752855045137,0.06,177.29,177.28,11.79795514]
[1752855045332,0.67,177.28,177.22,0.54]
[1752855045545,0.67,177.28,177.27,11.79795514]
[1752855045781,42.56795514,177.28,177.17,16.78468397]
[1752855045953,26.0,177.24,177.16,7.1909]
[1752855046260,37.79795514,177.24,177.19,11.79795514]
[1752855046561,30.77,177.23,177.19,11.79795514]
[1752855046938,30.1,177.23,177.19,11.79795514]
[1752855047155,0.67,177.22,177.19,11.79795514]
[1752855047456,30.1,177.23,177.21,11.79795514]
[1752855047757,30.77,177.23,177.21,11.79795514]
[1752855048456,36.41148824,177.26,177.22,11.79795514]
[1752855048631,0.67,177.25,177.23,11.79795514]
[1752855048829,0.67,177.25,177.24,11.79795514]
[1752855049030,0.67,177.25,177.23,11.79795514]
[1752855049265,0.67,177.24,177.22,11.79795514]
[1752855049444,35.7414846,177.26,177.22,11.79795514]
[1752855049445,0.67,177.23,177.22,11.79795514]
[1752855049830,35.7414846,177.26,177.22,11.79795514]
[1752855050035,0.67,177.25,177.23,11.79795514]
[1752855050236,0.67,177.27,177.24,11.79795514]
[1752855050455,0.67,177.27,177.25,11.79795514]
[1752855050456,5.64123145,177.27,177.25,11.79795514]
[1752855050644,0.67,177.26,177.24,11.79795514]
[1752855050958,0.67,177.27,177.25,11.79795514]
[1752855051143,32.31118383,177.27,177.25,11.79795514]
[1752855051458,0.67,177.26,177.24,11.79795514]
[1752855051754,0.67,177.26,177.2,6.18328018]
[1752855051942,0.67,177.25,177.23,11.79795514]
[1752855052139,0.67,177.24,177.17,5.64429643]
[1752855052342,42.56795514,177.24,177.19,11.79795514]
[1752855052557,11.79795514,177.22,177.17,11.79795514]
[1752855052761,0.67,177.21,177.17,11.79795514]
[1752855052943,6.31365579,177.2,177.17,11.79795514]
[1752855053140,0.67,177.19,177.11,6.6509]
[1752855053345,0.67,177.19,177.15,11.79795514]
[1752855053545,0.67,177.18,177.14,11.79795514]
[1752855053763,11.79795514,177.19,177.14,11.79795514]
[1752855053764,0.67,177.17,177.14,11.79795514]
[1752855054062,0.67,177.16,177.14,11.79795514]
[1752855054285,0.67,177.19,177.15,11.79795514]
[1752855054452,0.67,177.18,177.15,11.79795514]
[1752855054768,56.08,177.2,177.17,11.79795514]
[1752855054941,30.08,177.2,177.19,11.79795514]
[1752855055563,26.0,177.21,177.19,11.79795514]
[1752855055882,26.67,177.21,177.15,5.64491856]
[1752855056059,26.67,177.21,177.19,11.79795514]
[1752855056236,31.64307881,177.21,177.19,11.79795514]
[1752855056441,0.67,177.2,177.15,5.64491856]
[1752855056642,0.67,177.19,177.13,5.64548394]
[1752855057169,42.56795514,177.19,177.14,11.79795514]
[1752855057465,0.67,177.18,177.14,11.79795514]
[1752855057764,0.67,177.17,177.14,11.79795514]
[1752855058159,0.67,177.16,177.14,11.79795514]
[1752855058354,36.39523285,177.15,177.11,11.79795514]
[1752855058555,30.08,177.15,177.12,11.79795514]
[1752855059264,0.67,177.14,177.12,11.79795514]
[1752855059853,0.67,177.14,177.08,5.64716512]
[1752855060164,0.67,177.14,177.1,11.79795514]
[1752855060349,18.11362307,177.13,177.08,11.79795514]
[1752855060552,56.08,177.15,177.1,11.79795514]
[1752855060553,0.67,177.12,177.1,11.79795514]
[1752855060797,56.75,177.15,177.11,11.79795514]
[1752855060949,30.08,177.15,177.14,11.79795514]
[1752855061149,26.67,177.18,177.14,11.79795514]
[1752855061376,30.08,177.18,177.17,11.79795514]
[1752855061545,30.08,177.18,177.16,11.79795514]
[1752855061945,30.08,177.18,177.17,11.79795514]
[1752855062553,0.67,177.22,177.17,11.79795514]
[1752855062863,30.1,177.21,177.2,11.79795514]
[1752855063062,0.67,177.21,177.2,11.79795514]
[1752855063364,30.1,177.22,177.2,11.79795514]
[1752855063547,30.1,177.22,177.21,11.79795514]
[1752855063743,2.3341,177.26,177.21,11.79795514]
[1752855063744,26.0,177.24,177.21,11.79795514]
[1752855063957,56.1,177.25,177.23,11.79795514]
[1752855064170,30.77,177.25,177.24,11.79795514]
[1752855064371,56.77,177.25,177.24,11.79795514]
[1752855064664,62.41174894,177.25,177.24,11.79795514]
[1752855064867,56.77,177.25,177.24,11.79795514]
[1752855065064,30.1,177.25,177.24,11.79795514]
[1752855065260,56.77,177.25,177.16,26.0]
[1752855065445,0.67,177.24,177.21,11.79795514]
[1752855065646,56.1,177.25,177.23,11.79795514]
[1752855065863,56.1,177.25,177.24,11.79795514]
[1752855066065,56.1,177.25,177.17,6.18406436]
[1752855066255,56.1,177.25,177.17,11.79795514]
[1752855066256,37.79795514,177.22,177.17,11.79795514]
[1752855066448,5.64334085,177.2,177.14,11.79795514]
[1752855066666,0.67,177.19,177.15,11.79795514]
[1752855066873,5.64334085,177.2,177.15,11.79795514]
[1752855066874,30.75,177.18,177.15,11.79795514]
[1752855067242,0.67,177.17,177.12,6.4181]
[1752855067470,0.67,177.16,177.13,11.79795514]
[1752855067656,30.08,177.18,177.15,11.79795514]
[1752855067853,30.08,177.18,177.17,11.79795514]
[1752855068054,30.08,177.2,177.17,11.79795514]
[1752855068373,30.08,177.2,177.18,11.79795514]
[1752855068578,30.08,177.2,177.15,0.54]
[1752855068579,56.75,177.23,177.19,11.79795514]
[1752855068757,56.75,177.23,177.21,11.79795514]
[1752855068957,30.08,177.23,177.22,11.79795514]
[1752855069870,30.75,177.23,177.2,11.79795514]
[1752855070062,0.67,177.22,177.2,11.79795514]
[1752855070452,6.31305496,177.21,177.18,11.79795514]
[1752855070655,0.67,177.21,177.18,11.79795514]
[1752855070858,0.67,177.2,177.14,31.64525234]
[1752855071060,0.67,177.2,177.18,11.79795514]
[1752855071267,0.67,177.2,177.17,11.79795514]
[1752855071875,0.67,177.19,177.11,12.47054334]
[1752855072180,0.67,177.19,177.16,11.79795514]
[1752855072574,0.67,177.19,177.17,11.79795514]
[1752855072772,35.72346041,177.2,177.17,11.79795514]
[1752855072962,35.72346041,177.2,177.16,11.79795514]
[1752855073159,35.72346041,177.2,177.12,0.54]
[1752855073160,0.67,177.19,177.15,11.79795514]
[1752855073359,0.67,177.19,177.16,11.79795514]
[1752855073878,0.67,177.18,177.15,11.79795514]
[1752855074080,5.64429643,177.17,177.14,11.79795514]
[1752855076562,30.08,177.19,177.16,11.79795514]
[1752855076863,12.49795514,177.18,177.11,6.2846]
[1752855077067,102.19795514,177.17,177.12,11.79795514]
[1752855077264,30.08,177.16,177.13,11.79795514]
[1752855077469,30.08,177.16,177.14,11.79795514]
[1752855077665,89.7,177.17,177.15,11.79795514]
[1752855077880,89.7,177.17,177.16,11.79795514]
[1752855078274,96.04440469,177.17,177.13,11.79795514]
[1752855078468,0.7,177.16,177.12,11.79795514]
[1752855078784,95.34440469,177.17,177.13,11.79795514]
[1752855079090,89.7,177.17,177.16,11.79795514]
[1752855079880,95.34430676,177.17,177.14,11.79795514]
[1752855080060,96.04430676,177.17,177.14,11.79795514]
[1752855080261,95.34430676,177.17,177.14,11.79795514]
[1752855080483,96.04430676,177.17,177.14,11.79795514]
[1752855080790,96.04430676,177.17,177.11,0.03]
[1752855080791,132.27795514,177.16,177.11,11.82795514]
[1752855081088,89.7,177.15,177.13,11.79795514]
[1752855081269,89.7,177.15,177.14,11.79795514]
[1752855081584,90.4,177.15,177.11,0.03]
[1752855081788,30.78,177.14,177.11,0.03]
[1752855082086,11.79795514,177.13,177.11,0.03]
[1752855082269,5.64588979,177.12,177.11,0.03]
[1752855082472,6.34588979,177.12,177.11,0.03]
[1752855082677,0.7,177.12,177.11,0.03]
[1752855082987,174.6,177.17,177.11,11.82795514]
[1752855083174,30.08,177.16,177.14,11.79795514]
[1752855083689,30.08,177.16,177.11,0.57]
[1752855083888,30.08,177.16,177.15,11.79795514]
[1752855084072,30.08,177.16,177.14,11.79795514]
[1752855084793,30.08,177.16,177.13,11.79795514]
[1752855085005,0.7,177.15,177.12,11.79795514]
[1752855085493,30.08,177.16,177.14,11.79795514]
[1752855086072,30.78,177.16,177.13,11.79795514]
[1752855086878,35.72466098,177.16,177.13,11.79795514]
[1752855087072,0.7,177.15,177.12,11.79795514]
[1752855087283,0.7,177.15,177.11,0.03]
[1752855087491,89.7,177.14,177.13,11.79795514]
[1752855088285,89.7,177.14,177.12,11.79795514]
[1752855088286,90.4,177.14,177.12,11.79795514]
[1752855088491,89.7,177.14,177.13,11.79795514]
[1752855089297,89.7,177.14,177.13,17.44352618]
[1752855089513,89.7,177.14,177.13,17.98352618]
[1752855090293,89.7,177.14,177.13,17.44352618]
[1752855090499,89.7,177.14,177.12,5.67586883]
[1752855090684,89.7,177.14,177.13,11.79795514]
[1752855091392,89.7,177.13,177.12,0.03]
[1752855091701,89.7,177.13,177.12,11.82795514]
[1752855092496,89.7,177.13,177.12,12.36795514]
[1752855092698,89.7,177.13,177.12,18.01384493]
[1752855093202,89.7,177.16,177.12,18.01384493]
[1752855093398,89.7,177.16,177.15,11.79795514]
[1752855093606,90.4,177.16,177.14,11.79795514]
[1752855093809,89.7,177.16,177.15,11.79795514]
[1752855094802,30.08,177.21,177.15,12.33795514]
[1752855095004,26.0,177.21,177.2,11.79795514]
[1752855095174,30.78,177.22,177.2,11.79795514]
[1752855095896,30.78,177.22,177.21,11.79795514]
[1752855096087,36.42270398,177.22,177.21,11.79795514]